{"text_format":"3","workbook":"xlsx","n_sheets":1,"sheets":["Протокол ШЭ ВОШ по предмету"],"not_rendered":{"defined_names":2},"read":"whole","date_system":"1900"}

{"sheet":"Протокол ШЭ ВОШ по предмету","index":0,"n_rows":78,"n_cols":9,"rows_kept":78}
["Наименование ОО","Фамилия","Класс обучения","Класс участия","Балл","Добавлено баллов по итогам апелляций","Итоговый балл","Максимальный балл","Статус"]
["Муниципальное бюджетное общеобразовательное учреждение «Сармановская гимназия» Сармановского муниципального района Республики Татарстан","Хуснутдинова",5,5,24.5,null,{"$f":"F2+E2","v":24.5},45,"призер"]
["Муниципальное бюджетное общеобразовательное учреждение «Сармановская гимназия» Сармановского муниципального района Республики Татарстан","Хафизов",5,5,27.5,null,{"$f":"F3+E3","v":27.5},45,"призер"]
["Муниципальное бюджетное общеобразовательное учреждение «Сармановская средняя общеобразовательная школа» Сармановского муниципального района Республики Татарстан","Алчинова",5,5,23,null,23,45]
["Муниципальное бюджетное общеобразовательное учреждение «Сармановская гимназия» Сармановского муниципального района Республики Татарстан","Шарафетдинов",6,6,16,null,16,48]
["Муниципальное бюджетное общеобразовательное учреждение «Сармановская гимназия» Сармановского муниципального района Республики Татарстан","Алексеева",6,6,14,null,14,48]
["Муниципальное бюджетное общеобразовательное учреждение «Сармановская гимназия» Сармановского муниципального района Республики Татарстан","Шакирова",6,6,12,null,12,48]
["Муниципальное бюджетное общеобразовательное учреждение «Сармановская средняя общеобразовательная школа» Сармановского муниципального района Республики Татарстан","Киямов",6,6,18,null,18,48]
["Муниципальное бюджетное общеобразовательное учреждение «Сармановская гимназия» Сармановского муниципального района Республики Татарстан","Асылгараева",8,8,12,null,12,55]
["Муниципальное бюджетное общеобразовательное учреждение «Кавзияковская основная общеобразовательная школа» Сармановского муниципального района Республики Татарстан","Салихова",8,8,24.5,null,24.5,55]
["Муниципальное бюджетное общеобразовательное учреждение «Сармановская гимназия» Сармановского муниципального района Республики Татарстан","Шаяхметов",8,8,23,null,23,55]
["Муниципальное бюджетное общеобразовательное учреждение «Сармановская средняя общеобразовательная школа» Сармановского муниципального района Республики Татарстан","Валиахметова",4,4,16.5,null,16.5,33]
["Муниципальное бюджетное общеобразовательное учреждение «Сармановская средняя общеобразовательная школа» Сармановского муниципального района Республики Татарстан","Гильфанова",4,4,11,null,11,33]
["Муниципальное бюджетное общеобразовательное учреждение «Сармановская гимназия» Сармановского муниципального района Республики Татарстан","Фарукшин",5,5,12.5,null,12.5,45]
["Муниципальное бюджетное общеобразовательное учреждение «Сармановская средняя общеобразовательная школа» Сармановского муниципального района Республики Татарстан","Фатхуллина",5,5,21.9,null,21.9,45]
["Муниципальное бюджетное общеобразовательное учреждение «Сармановская средняя общеобразовательная школа» Сармановского муниципального района Республики Татарстан","Сабирова",5,5,39,null,39,45,"победитель"]
["МБОУ «Старомензелябашская основная общеобразовательная школа имени А.Тимергалина» Сармановского муниципального района РТ","Хуснутдинова",5,5,18.7,null,18.7,45]
["Муниципальное бюджетное общеобразовательное учреждение \"Альметьевская средняя общеобразовательная школа имени Мурада Рамзи\" Сармановского муниципального района РТ","Ибрагимова",5,5,18,null,18,45]
["Муниципальное бюджетное общеобразовательное учреждение «Саклов-Башская средняя общеобразовательная школа» Сармановского муниципального района Республики Татарстан","Габидуллина",5,5,19.7,null,19.7,45]
["Муниципальное бюджетное общеобразовательное учреждение «Сармановская средняя общеобразовательная школа» Сармановского муниципального района Республики Татарстан","Низамов",6,6,23,null,23,48,"призер"]
["Муниципальное бюджетное общеобразовательное учреждение «Старокаширская средняя общеобразовательная школа имени Зинната Хасанова» Сармановского муниципального района Республики Татарстан","Ахметбаева",6,6,21,null,21,48]
["Муниципальное бюджетное общеобразовательное учреждение «Сармановская средняя общеобразовательная школа» Сармановского муниципального района Республики Татарстан","Камалетдинов",6,6,15,null,15,48]
["муниципальное бюджетное общеобразовательное учреждение «Большенуркеевская средняя общеобразовательная школа» Сармановского муниципального района Республики Татарстан.","Харрасов",6,6,22,null,22,48,"призер"]
["Муниципальное бюджетное общеобразовательное учреждение «Лякинская основная общеобразовательная школа» Сармановского муниципального района РТ - Татарстан Республикасы","Шакирова",6,6,17,null,17,48]
["Муниципальное бюджетное общеобразовательное учреждение «Сармановская гимназия» Сармановского муниципального района Республики Татарстан","Брызгалов",7,7,32,null,32,50,"победитель"]
["Муниципальное бюджетное общеобразовательное учреждение «Сармановская гимназия» Сармановского муниципального района Республики Татарстан","Юнусова",7,7,22,null,22,50,"призер"]
["Муниципальное бюджетное общеобразовательное учреждение «Сармановская гимназия» Сармановского муниципального района Республики Татарстан","Валиева",7,7,21,null,21,50]
["Муниципальное бюджетное общеобразовательное учреждение \"Альметьевская средняя общеобразовательная школа имени Мурада Рамзи\" Сармановского муниципального района РТ","Хуснимухаметова",7,7,10,null,10,50]
["Муниципальное бюджетное общеобразовательное учреждение \"Муртыш-Тамакская основная общеобразовательная школа\" Сармановского муниципального района Республики Татарстан","Газизова",7,7,27,null,27,50,"призер"]
["Муниципальное бюджетное общеобразовательное учреждение \"Альметьевская средняя общеобразовательная школа имени Мурада Рамзи\" Сармановского муниципального района РТ","Шигапова",8,8,20,null,20,55]
["Муниципальное бюджетное общеобразовательное учреждение «Сармановская средняя общеобразовательная школа» Сармановского муниципального района Республики Татарстан","Сабирова",8,8,37.7,null,37.7,55,"победитель"]
["муниципальное бюджетное общеобразовательное учреждение «Большенуркеевская средняя общеобразовательная школа» Сармановского муниципального района Республики Татарстан.","Фахразиева",8,8,30.5,null,30.5,55,"призер"]
["Муниципальное бюджетное общеобразовательное учреждение «Старокаширская средняя общеобразовательная школа имени Зинната Хасанова» Сармановского муниципального района Республики Татарстан","Бадертдинов",8,8,20.5,null,20.5,55]
["муниципальное бюджетное общеобразовательное учреждение «Большенуркеевская средняя общеобразовательная школа» Сармановского муниципального района Республики Татарстан.","Зарипова",8,8,26.5,null,26.5,55,"призер"]
["Муниципальное бюджетное общеобразовательное учреждение «Сармановская средняя общеобразовательная школа» Сармановского муниципального района Республики Татарстан","Аюпова",8,8,24,null,24,55]
["Муниципальное бюджетное общеобразовательное учреждение \"Муртыш-Тамакская основная общеобразовательная школа\" Сармановского муниципального района Республики Татарстан","Измайлова",8,8,20.5,null,20.5,55]
["Муниципальное бюджетное общеобразовательное учреждение «Сармановская гимназия» Сармановского муниципального района Республики Татарстан","Галиуллина",9,9,29,null,29,43,"призер"]
["Муниципальное бюджетное общеобразовательное учреждение «Сармановская гимназия» Сармановского муниципального района Республики Татарстан","Хусаинова",9,9,32,null,32,43,"победитель"]
["Муниципальное бюджетное общеобразовательное учреждение «Сармановская гимназия» Сармановского муниципального района Республики Татарстан","Вагизова",9,9,21.5,null,21.5,43]
["Муниципальное бюджетное общеобразовательное учреждение «Кавзияковская основная общеобразовательная школа» Сармановского муниципального района Республики Татарстан","Фатихова",9,9,30,null,30,43,"призер"]
["Муниципальное бюджетное общеобразовательное учреждение «Старокаширская средняя общеобразовательная школа имени Зинната Хасанова» Сармановского муниципального района Республики Татарстан","Сайфуллин",9,9,23.5,null,23.5,43]
["муниципальное бюджетное общеобразовательное учреждение «Большенуркеевская средняя общеобразовательная школа» Сармановского муниципального района Республики Татарстан.","Гатиятуллина",9,9,20.5,null,20.5,43]
["Муниципальное бюджетное общеобразовательное учреждение «Сармановская гимназия» Сармановского муниципального района Республики Татарстан","Рашитова",10,10,39.5,null,39.5,63,"призер"]
["Муниципальное бюджетное общеобразовательное учреждение «Сармановская гимназия» Сармановского муниципального района Республики Татарстан","Сагитова",10,10,43,null,43,63,"победитель"]
["Муниципальное бюджетное общеобразовательное учреждение «Сармановская гимназия» Сармановского муниципального района Республики Татарстан","Латипова",10,10,36,null,36,63,"призер"]
["Муниципальное бюджетное общеобразовательное учреждение «Сармановская гимназия» Сармановского муниципального района Республики Татарстан","Ситдикова",11,11,15.5,null,15.5]
["Муниципальное бюджетное общеобразовательное учреждение «Старокаширская средняя общеобразовательная школа имени Зинната Хасанова» Сармановского муниципального района Республики Татарстан","Хабибуллина",11,11,44,null,44,null,"призер"]
["Муниципальное бюджетное общеобразовательное учреждение «Старокаширская средняя общеобразовательная школа имени Зинната Хасанова» Сармановского муниципального района Республики Татарстан","Миннегулов",11,11,37,null,37,null,"призер"]
["Муниципальное бюджетное общеобразовательное учреждение «Сармановская средняя общеобразовательная школа» Сармановского муниципального района Республики Татарстан","Ибрагимова",11,11,22.5,null,22.5]
["Муниципальное бюджетное общеобразовательное учреждение «Сармановская средняя общеобразовательная школа» Сармановского муниципального района Республики Татарстан","Хатипова",11,11,56,null,56,null,"победитель"]
["Муниципальное бюджетное общеобразовательное учреждение «Лякинская основная общеобразовательная школа» Сармановского муниципального района РТ - Татарстан Республикасы","Аксакова",5,5,19.5,null,19.5,45]
["муниципальное бюджетное общеобразовательное учреждение «Большенуркеевская средняя общеобразовательная школа» Сармановского муниципального района Республики Татарстан.","Халиуллин",5,5,24.1,null,24.1,45]
["Муниципальное бюджетное общеобразовательное учреждение \"Лешев-Тамакская основная общеобразовательная школа\" Сармановского муниципального района Республики Татарстан","Самарова",5,5,18,null,18,45]
["Муниципальное бюджетное общеобразовательное учреждение \"Альметьевская средняя общеобразовательная школа имени Мурада Рамзи\" Сармановского муниципального района РТ","Тимербаева",10,10,32,null,32,63]
["Муниципальное бюджетное общеобразовательное учреждение \"Альметьевская средняя общеобразовательная школа имени Мурада Рамзи\" Сармановского муниципального района РТ","Исламов",4,4,16.5,null,16.5,33]
["муниципальное бюджетное общеобразовательное учреждение «Большенуркеевская средняя общеобразовательная школа» Сармановского муниципального района Республики Татарстан.","Сафина",6,6,28,null,28,48,"победитель"]
["Муниципальное бюджетное общеобразовательное учреждение «Сармановская средняя общеобразовательная школа» Сармановского муниципального района Республики Татарстан","Юсупова",9,9,17.5,null,17.5,43]
["муниципальное бюджетное общеобразовательное учреждение «Большенуркеевская средняя общеобразовательная школа» Сармановского муниципального района Республики Татарстан.","Мустафина",4,4,16,null,16,33]
["Муниципальное бюджетное общеобразовательное учреждение «Сармановская гимназия» Сармановского муниципального района Республики Татарстан","Мавлавиева ",4,4,17.5,null,17.5,33,"призер"]
["Муниципальное бюджетное общеобразовательное учреждение «Сармановская гимназия» Сармановского муниципального района Республики Татарстан","Нуриева",4,4,26,null,26,33,"призер"]
["Муниципальное бюджетное общеобразовательное учреждение «Сармановская гимназия» Сармановского муниципального района Республики Татарстан","Гарипова",4,4,27,null,27,33,"победитель"]
["Муниципальное бюджетное общеобразовательное учреждение «Старокаширская средняя общеобразовательная школа имени Зинната Хасанова» Сармановского муниципального района Республики Татарстан","Марданшина",5,5,20.5,null,{"$f":"F62+E62","v":20.5},45]
["Муниципальное бюджетное общеобразовательное учреждение «Лякинская основная общеобразовательная школа» Сармановского муниципального района РТ - Татарстан Республикасы","Степанова",9,9,17.5,null,17.5,43]
["Муниципальное бюджетное общеобразовательное учреждение «Старокаширская средняя общеобразовательная школа имени Зинната Хасанова» Сармановского муниципального района Республики Татарстан","Газизова",9,9,17.5,null,17.5,43]
["Муниципальное бюджетное общеобразовательное учреждение «Сармановская средняя общеобразовательная школа» Сармановского муниципального района Республики Татарстан","Халиуллина",9,9,10.5,null,10.5,43]
["муниципальное бюджетное общеобразовательное учреждение «Большенуркеевская средняя общеобразовательная школа» Сармановского муниципального района Республики Татарстан.","Гатиятуллина",10,10,33,null,33,63]
["Муниципальное бюджетное общеобразовательное учреждение «Старокаширская средняя общеобразовательная школа имени Зинната Хасанова» Сармановского муниципального района Республики Татарстан","Калимуллина",10,10,32,null,32,63]
["Муниципальное бюджетное общеобразовательное учреждение «Сармановская средняя общеобразовательная школа» Сармановского муниципального района Республики Татарстан","Шарафутдиноа",11,11,20,null,20]
["муниципальное бюджетное общеобразовательное учреждение «Большенуркеевская средняя общеобразовательная школа» Сармановского муниципального района Республики Татарстан.","Саетова",11,11,15.5,null,15.5]
["муниципальное бюджетное общеобразовательное учреждение «Большенуркеевская средняя общеобразовательная школа» Сармановского муниципального района Республики Татарстан.","Зарипов",5,5,16.5,null,16.5,45]
["Муниципальное бюджетное общеобразовательное учреждение \"Альметьевская средняя общеобразовательная школа имени Мурада Рамзи\" Сармановского муниципального района РТ","Сабирзянов",4,4,14,null,14,33]
["Муниципальное бюджетное общеобразовательное учреждение «Сармановская средняя общеобразовательная школа» Сармановского муниципального района Республики Татарстан","Валиахметова",10,10,30,null,30,63]
["Муниципальное бюджетное общеобразовательное учреждение «Сармановская средняя общеобразовательная школа» Сармановского муниципального района Республики Татарстан","Гараева",4,4,12.5,null,12.5,33]
["Муниципальное бюджетное общеобразовательное учреждение \"Лешев-Тамакская основная общеобразовательная школа\" Сармановского муниципального района Республики Татарстан","Ахметзянова",4,4,16,null,16,33]
["муниципальное бюджетное общеобразовательное учреждение «Большенуркеевская средняя общеобразовательная школа» Сармановского муниципального района Республики Татарстан.","Билалова",4,4,14.5,null,14.5,33]
["Муниципальное бюджетное общеобразовательное учреждение «Саклов-Башская средняя общеобразовательная школа» Сармановского муниципального района Республики Татарстан","Миннуллина",4,4,8,null,8,33]
["Муниципальное бюджетное общеобразовательное учреждение \"Лешев-Тамакская основная общеобразовательная школа\" Сармановского муниципального района Республики Татарстан","Хамидуллин",4,4,9,null,9,33]
["Муниципальное бюджетное общеобразовательное учреждение «Азалаковская основная общеобразовательная школа» Сармановского муниципального района Республики Татарстан","Габделгазизова",7,7,20,null,20,50]